Workbook

Sheet Megger
B1: Beregning på et varmelegeme - enkelt leder - der har overgang til skærm (beskyttelsesjord)
G2: Varmelegeme med skærmkappe
G3: =CONCATENATE(G13,J13,K13) -> Længde: 1000 cm | Z3: Skærm
C4: =IF(J11=230,"fase",IF(J11=400,"Fase","Pos")) -> fase | E4: tråden | Z4: tråden | AB4: =IF(J11=230,"Neutral",IF(J11=400,"Fase","Neg")) -> Neutral
C5: =CONCATENATE(J11,K11) -> 230 Volt | E5: Ende A | Z5: Ende B | AB5: =IF(J11=230,"0",IF(J11=400,C5,0)) -> 0
K6: a | Q6: overgang til jord i X | U6: b | Z6: Skærm
G7: Målt fra ende A | J7: =+I20 -> 4631.74 | M7: Ω | N7: til X | Q7: Målt fra ende B | R7: =+I21 -> 4621.16 | U7: Ω | V7: til X
Q8: overgangsmodstand X fra tråd til jord er ens målt fra begge ender A og B.
J9: =+I29 -> 600 | M9: cm | N9: =CONCATENATE(M26,S26,O26,P26) -> a er 200 cm længere end b | U9: =+I30 -> 400 | W9: cm
J10: =J9*Q17 -> 31.74 | M10: Ω | U10: =U9*Q17 -> 21.16 | W10: Ω
B11: Det vi ved om varmelegemet: | G11: Spænding: | J11: 230 | K11: Volt | L11: V | M11: Spænding | O11: Spændingsfaldet i varmetråden er per cm: | T11: =J11/J13 -> 0.23 | U11: volt | V11: I X punktet er spændingen: | Z11: =T11*J9 -> 138 | AA11: volt
G12: Effekt: | J12: 1000 | K12: Watt | L12: W | M12: Effekt | O12: Ved 30 mA skal fejlstrømsafbryderen slå fra. Det giver en overgangsmodstand R = V/I = | Z12: =Z11/0.03 -> 4600 | AA12: Ω
G13: Længde: | J13: 1000 | K13: cm | L13: L | M13: a + b
B14: Antagelse: | G14: Skærmen er tilsluttet beskyttelsesjord og antages at have en Ohmsk modstand på nul.
B15: Det vi kan beregne: | G15: Strømmen i tråden: | L15: W = V * I ; I = W / V ; | P15: I = | Q15: =J12/J11 -> 4.347826087 | R15: A
G16: Modstanden i tråden: | L16: V = I * R; R = V / I ; | P16: R = | Q16: =J11/Q15 -> 52.9 | R16: Ω
G17: Modstanden i tråden/cm: | L17: R / L ; | P17: ρ = | Q17: =Q16/J13 -> 0.0529 | R17: Ω/cm
B18: Vi skal nu foretage 2 målinger med et Ohmmeter eller en såkaldt "Megger", som kan måle høje og nøjagtige værdier. Også kaldet isolationstester. Værdierne er normalt i megaohm.
B19: http://da.wikipedia.org/wiki/Isolationstester
B20: 1. måling fra ende A til skærm giver: | I20: 4631.74 | L20: Ω | M20: =+I20/1000000 -> 0.00463174 | N20: MΩ | P20: Værdierne skal indsættes meget nøjagtige
B21: 2. måling fra ende B til skærm giver: | I21: 4621.16 | L21: Ω | M21: =I21/1000000 -> 0.00462116 | N21: MΩ
B22: Ende A giver: | E22: (a * Ω/cm + X) = | I22: =+I20 -> 4631.74 | L22: Ω | M22: X er værdien af overgangsmodstanden mellem tråd og skærm. Denne udlignes ved at subtrahere de to ligninger.
B23: Ende B giver: | E23: (b * Ω/cm + X) = | I23: =+I21 -> 4621.16 | L23: Ω
B24: De to ligninger subtraheres: | G24: A - B = | I24: =+I22-I23 -> 10.58 | L24: Ω | M24: Plus angiver A>B ; Minus angiver B>A. Værdien angiver forskellen mellem modstanden i A og B målt til punktet X.
B25: Beregnet modstand i tråden | G25: A + B = R | I25: =+Q16 -> 52.9 | L25: Ω
B26: Omregnet til cm: | G26: a - b = (A-B)/ρ | I26: =I24/Q17 -> 200 | L26: cm | M26: =IF(N26=0,"",IF(N26>0,"a er ",IF(N26<0,"a er "))) -> a er | N26: =ROUND(I26,1) -> 200 | O26: =IF(N26=0,"",IF(N26>0," cm ",IF(N26<0," cm "))) -> cm | P26: =IF(N26>0,P28,IF(N26=0,P30,IF(N26<0,P29))) -> længere end b | R26: =ABS(N26) -> 200 | S26: =IF(N26=0,"",IF(N26>0,R26,IF(N26<0,R26))) -> 200
B27: Omregnet til cm: | G27: a + b = L | I27: =I25/Q17 -> 1000 | L27: cm
B28: De to ligninger adderes: | G28: 2a = | I28: =SUM(I26:I27) -> 1200 | L28: cm | P28: længere end b
B29: Længde a: | G29: a = | I29: =I28/2 -> 600 | L29: cm | P29: kortere end b
B30: Længde b: | G30: b = L - a = | I30: =I27-I29 -> 400 | L30: cm | P30: a og b lige lange
A32: walter | Z32: Reg. No. 1274

Sheet Manual
B1: Manual:
B2: I alle boliger bygget efter 1975 skal der være installeret en fejlstrømsafbryder HFI. H står for højfølsom, F for fejlstrøm og I bogstavsymbol for elektrisk strøm. Efter 1991 blev det et krav,
B3: at der skal installeres en fejlstrømsafbryder HPFI. P står for pulserende. Begge typer slår fra ved en fejlstrøm på 30 mA vekselstrøm. HPFI fejlstrømsafbryderen slår også fra ved pulserende jævnstrømme.
B4: HPFI fejlstrømsafbryder er mere robuste for lynnedslag end HFI. Så oplever du, at køleskabet eller dybfryseren står af ved lynnedslag, skift til HPFI fejlstrømsafbryder.
B6: I regnearket skal de 5 gule felter udfyldes. 3 værdier for dit varmelegeme: Nominel spænding i Volt, effekt i Watt og længden i cm.
B7: Elektrikeren skal måle 2 værdier med sin "Megger", og disse værdier indsættes i regnearket. Værdierne skal indsættes meget nøjagtigt. Derefter udregnes X punktet.
B8: Regnearket kan bruges såvel til fase og "nul" 230 volt, som til fase og fase 400 volt. Benyttes en anden spænding f. eks. 100 VDC kan regnearket også anvendes.
B9: Spændingsfaldet langs varmetråden falder med afstanden målt fra neutral (Neg) til fase (Pos) . Denne kan beregnes, så spændingen i X punktet kendes og dermed overgangsmodstanden ved 30 mA,
B10: som er den strøm fejlstrømsafbryderen slår fra ved. I viste eksempel er spændingen i X punktet: | K10: =+Megger!Z11 -> 138 | L10: =+Megger!AA11 -> volt
B12: En hyppig fejl ved varmelegemer er, at der er kommet fugt (vand) ind i isolationen efter lang tids opbevaring uden brug. Det får fejlstrømsafbryderen til at slå fra.
B13: Disse fejl kan i nogen grad afhjælpes ved at frakoble beskyttelsesjord (gul/grøn) ledning, for så at opvarme isolationen (kvartssand).
B14: Der er her tale om metalvarmelegemer til brug i f. eks. drivhuse eller på terrasser. Det er ikke noget man selv gør, for naturligvis skal man først undersøge med en megger, om der er en direkte kortslutning
B15: mellem fase og metalskærm. Hvis dette er tilfældet vil sikringen i gruppen brænde over. En bedre løsning for at få fugten ud af isolationen er, at opvarme varmelegemet med en varmepistol.
B17: Gulvvarmelegemer er noget helt andet, de grove fejl er, at der er slået søm eller skruer ned i varmelegemet, og så er en udskiftning af X punktet den eneste løsning. Gulvvarmemåtter findes som
B18: 2-ledere. I princippet er det blot, at ledningen - varmetråden - går frem og tilbage til samme udgangspunkt. I princippet kan regnearket bruges, men afstanden til X punktet er svært at bestemme.
A22: walter | Q22: Reg. No. 1274
